bitfinex/quotes_BTCUSD_20250406
["timestamp","ask_amount","ask_price","bid_price","bid_amount"]
[1743952523002,0.00045583,82542.0,82541.0,1.5451432]
[1743952523207,0.00045583,82542.0,82541.0,1.6870232]
[1743952523635,0.00045583,82542.0,82541.0,1.67248235]
[1743952524563,0.00045583,82542.0,82541.0,1.32036735]
[1743952524764,0.18218083,82542.0,82541.0,1.17848735]
[1743952525083,0.00045583,82542.0,82541.0,1.32032735]
[1743952525292,0.00846701,82542.0,82541.0,1.32032735]
[1743952525490,0.00045583,82542.0,82541.0,1.32032735]
[1743952525790,0.00078723,82542.0,82541.0,1.19742438]
[1743952526772,0.00078723,82542.0,82541.0,1.48993935]
[1743952526974,0.00078723,82542.0,82541.0,1.50205435]
[1743952528949,0.00078723,82542.0,82541.0,1.5165952]
[1743952531168,6.3e-07,82544.0,82543.0,0.211722]
[1743952531283,0.43007478,82578.0,82554.0,0.53623885]
[1743952531485,0.43007478,82578.0,82554.0,0.65914182]
[1743952531844,0.00046824,82555.0,82554.0,0.68414182]
[1743952539222,0.00046824,82555.0,82554.0,0.64460097]
[1743952539421,0.00046824,82555.0,82554.0,0.44636097]
[1743952542651,0.00046824,82555.0,82554.0,0.30460097]
[1743952542841,0.00046824,82555.0,82554.0,0.44636097]
[1743952542978,0.00046824,82555.0,82554.0,0.80090182]
[1743952543599,0.00046824,82555.0,82554.0,1.84678182]
[1743952545640,0.00046824,82555.0,82554.0,1.88413259]
[1743952545922,0.00046824,82555.0,82554.0,1.84678182]
[1743952546355,0.00046824,82555.0,82554.0,1.88413033]
[1743952546553,0.00046824,82555.0,82554.0,1.90913033]
[1743952547830,2.4e-07,82555.0,82554.0,1.90913033]
[1743952550583,2.4e-07,82555.0,82554.0,1.91413033]
[1743952551716,2.4e-07,82555.0,82554.0,1.90925593]
[1743952552117,0.00033144,82555.0,82554.0,1.90925593]
[1743952554605,0.00033144,82555.0,82554.0,1.72799508]
[1743952554808,0.00033144,82555.0,82554.0,1.86971508]
[1743952555029,0.00033144,82555.0,82554.0,1.86967508]
[1743952555209,0.00033144,82555.0,82554.0,1.83232657]
[1743952555412,0.00033144,82555.0,82554.0,1.86978758]
[1743952557142,0.00033144,82555.0,82554.0,1.72810758]
[1743952557300,0.00033144,82555.0,82554.0,1.86978758]
[1743952558159,0.00033144,82555.0,82554.0,1.88432843]
[1743952561396,0.00033144,82555.0,82554.0,1.88932843]
[1743952562152,0.00033144,82555.0,82554.0,1.88432843]
[1743952562357,0.00033144,82555.0,82554.0,1.86978758]
[1743952571375,0.00033144,82555.0,82554.0,1.86974758]
[1743952575400,0.00033144,82555.0,82554.0,1.20640958]
[1743952575675,0.00033144,82555.0,82554.0,1.36016258]
[1743952592320,0.00033144,82555.0,82554.0,1.21852258]
[1743952592516,0.00033144,82555.0,82554.0,1.36012258]
[1743952592517,0.04743144,82555.0,82554.0,1.36012258]
[1743952592697,0.04743144,82555.0,82554.0,1.20640958]
[1743952592904,0.04743144,82555.0,82554.0,1.34800958]
[1743952593097,0.04743144,82555.0,82554.0,1.20640958]
[1743952593305,0.04743144,82555.0,82554.0,1.34800958]
[1743952593502,0.04743144,82555.0,82554.0,1.36012258]
[1743952597595,0.04743144,82555.0,82554.0,1.21852258]
[1743952597796,0.10834444,82555.0,82554.0,1.0460456]
[1743952598001,0.27792744,82555.0,82554.0,0.0001656]
[1743952598207,0.28261632,82555.0,82554.0,0.0001656]
[1743952598802,1.0053911,82555.0,82554.0,0.0001656]
[1743952599767,0.012114,82547.0,82543.0,0.0001656]
[1743952599976,0.61872,82544.0,82543.0,0.0001656]
[1743952600175,0.62571483,82544.0,82543.0,0.0001656]
[1743952600581,1.00848961,82544.0,82543.0,0.0001656]
[1743952602395,0.012114,82543.0,82542.0,0.10806734]
[1743952602548,0.060315,82536.0,82535.0,1.18752]
[1743952602755,0.278737,82536.0,82535.0,1.18752]
[1743952602971,0.28572062,82536.0,82535.0,1.18752]
[1743952603129,0.6684954,82536.0,82535.0,1.18752]
[1743952604140,1.00151178,82536.0,82535.0,1.04592]
[1743952604563,1.00151178,82536.0,82535.0,0.99912]
[1743952605656,1.01345569,82536.0,82535.0,0.99912]
[1743952606440,0.278773,82520.0,82519.0,0.0001657]
[1743952606648,0.66154778,82520.0,82519.0,0.1417657]
[1743952606847,0.66154778,82520.0,82519.0,0.0001657]
[1743952607048,0.66154778,82520.0,82519.0,0.1417657]
[1743952607395,0.66154778,82520.0,82519.0,0.0001657]
[1743952607614,1.00154778,82520.0,82519.0,0.0001657]
[1743952607939,1.00154778,82520.0,82519.0,0.00062153]
[1743952609336,0.521791,82512.0,82511.0,0.02]
[1743952609544,0.618791,82512.0,82511.0,0.02013639]
[1743952613346,1.00094425,82512.0,82511.0,0.02013639]
[1743952616609,0.95274425,82512.0,82511.0,0.02030209]
[1743952619238,1.21274425,82512.0,82511.0,0.02030209]
[1743952619458,0.95274425,82512.0,82511.0,0.02030209]
[1743952620686,0.90394425,82512.0,82511.0,0.02030209]
[1743952621571,0.56394425,82512.0,82511.0,0.02030209]
[1743952621746,0.38215325,82512.0,82511.0,0.14320506]
[1743952622290,0.38215325,82512.0,82511.0,0.15532406]
[1743952622455,0.38215325,82512.0,82511.0,0.14320506]
[1743952624867,0.38215325,82512.0,82511.0,0.15532406]
[1743952625019,0.012117,82522.0,82513.0,0.012119]
[1743952625230,0.012118,82520.0,82514.0,0.12290297]
[1743952625385,0.169663,82517.0,82514.0,0.12290297]
[1743952626012,0.181773,82520.0,82514.0,0.12290297]
[1743952626214,0.181779,82518.0,82514.0,0.12290297]
[1743952628033,0.169666,82515.0,82514.0,0.12290297]
[1743952628471,0.181785,82515.0,82514.0,0.26450297]
[1743952629391,0.181781,82517.0,82514.0,0.26450297]
[1743952629559,0.012118,82516.0,82514.0,0.26450297]
[1743952629722,0.181783,82516.0,82514.0,0.26450297]
[1743952629924,0.181773,82520.0,82514.0,0.26450297]
[1743952630289,0.181779,82518.0,82514.0,0.26450297]
[1743952631008,0.012118,82518.0,82514.0,0.26450297]
[1743952631187,0.0003314,82519.0,82515.0,0.153719]
[1743952631416,0.0003314,82519.0,82516.0,0.12290297]
[1743952631547,0.0003314,82519.0,82517.0,1.0466]
[1743952631790,0.0003314,82519.0,82518.0,0.12290297]
[1743952633677,0.0103314,82519.0,82518.0,0.12290297]
[1743952633996,0.0003314,82519.0,82518.0,0.12290297]
[1743952634573,0.0003314,82519.0,82518.0,0.1317822]
[1743952635491,0.0003314,82519.0,82518.0,0.3135592]
[1743952635734,0.0003314,82519.0,82518.0,0.3014412]
[1743952635939,0.0003314,82519.0,82518.0,0.3605592]
[1743952636118,0.0003314,82519.0,82518.0,0.39812251]
[1743952637060,0.1821064,82519.0,82518.0,0.2733422]
[1743952637262,0.0003314,82519.0,82518.0,0.1317822]
[1743952637454,0.0003314,82519.0,82518.0,0.2733422]
[1743952638432,0.0003314,82519.0,82518.0,0.1317822]
[1743952638632,0.0003314,82519.0,82518.0,0.2733422]
[1743952640253,0.0003314,82519.0,82518.0,0.2854602]
[1743952642996,0.0003314,82519.0,82518.0,0.1317822]
[1743952643175,0.0003314,82519.0,82518.0,0.2733022]
[1743952643770,0.0003314,82519.0,82518.0,0.2734679]
[1743952649481,0.0124494,82519.0,82518.0,0.2734679]
[1743952649693,0.1821064,82519.0,82518.0,0.2734679]
[1743952652099,0.0003314,82519.0,82518.0,0.2734679]
[1743952655580,0.0003314,82519.0,82518.0,0.4552449]
[1743952656504,0.0003314,82519.0,82518.0,0.2734679]
[1743952657419,0.0003314,82519.0,82518.0,0.3309859]
[1743952657615,0.0003314,82519.0,82518.0,0.36862338]
[1743952660560,0.0003314,82519.0,82518.0,0.41672338]
[1743952662053,0.0003314,82519.0,82518.0,0.41668338]
[1743952667100,0.0003314,82519.0,82518.0,0.41672338]
[1743952671219,0.0003314,82519.0,82518.0,0.27524338]
[1743952671421,0.0003314,82519.0,82518.0,0.43122423]
[1743952672012,0.0003314,82519.0,82518.0,0.77622423]
[1743952675100,0.0003314,82535.0,82534.0,0.181743]
[1743952675300,0.0003314,82535.0,82534.0,0.53222345]
[1743952675481,0.0003314,82535.0,82534.0,0.58182345]
[1743952676691,0.0003314,82535.0,82534.0,0.5963643]
[1743952683204,0.0003314,82535.0,82534.0,0.4982643]
[1743952683519,0.0003314,82535.0,82534.0,0.1871973]
[1743952683724,0.0003314,82535.0,82534.0,0.3285573]
[1743952683925,0.0003314,82535.0,82534.0,0.3164413]
[1743952684255,0.0003314,82535.0,82534.0,0.1750813]
[1743952684498,0.0003314,82535.0,82534.0,0.3164413]
[1743952685490,0.0003314,82535.0,82534.0,0.4860683]
[1743952685695,0.0003314,82535.0,82534.0,0.9291683]
[1743952685825,0.0003314,82535.0,82534.0,0.9412843]
[1743952686027,0.0003314,82535.0,82534.0,1.9874443]
[1743952686423,0.0003314,82535.0,82534.0,1.8178173]
[1743952686831,0.0003314,82535.0,82534.0,1.8057013]
[1743952688593,0.0003314,82535.0,82534.0,1.9753283]
[1743952688981,0.0003314,82535.0,82534.0,1.9874443]
[1743952689505,0.0003314,82535.0,82534.0,1.8178173]
[1743952689848,0.0003314,82535.0,82534.0,1.8057013]
[1743952690489,0.0003314,82535.0,82534.0,1.9753283]
[1743952691475,0.0003314,82535.0,82534.0,1.8057013]
[1743952691892,0.0003314,82535.0,82534.0,1.8178173]
[1743952692644,0.0003314,82535.0,82534.0,1.9874443]
[1743952696583,0.0003314,82535.0,82534.0,1.8460843]
[1743952696780,0.0003314,82535.0,82534.0,1.9874043]
[1743952698700,0.0003314,82535.0,82534.0,1.38844345]
[1743952698898,0.0003314,82535.0,82534.0,1.34802045]
[1743952699102,0.0003314,82535.0,82534.0,1.32249897]
[1743952700159,0.0003314,82535.0,82534.0,1.31038297]
[1743952700744,0.0003314,82535.0,82534.0,0.12290297]
[1743952700898,0.0596474,82535.0,82534.0,1.31026297]
[1743952701113,0.06651804,82535.0,82534.0,1.31026297]
[1743952702245,0.11621804,82535.0,82534.0,1.31026297]
[1743952713879,0.45621804,82535.0,82534.0,1.04608]
[1743952714032,0.277673,82520.0,82518.0,0.00908493]
[1743952714364,0.277673,82520.0,82519.0,1.31062867]
[1743952716737,0.277673,82520.0,82519.0,1.16934867]
[1743952717071,0.277673,82520.0,82519.0,1.31062867]
[1743952721551,0.230773,82520.0,82519.0,1.31062867]
[1743952721762,0.181762,82526.0,82519.0,1.32274667]
[1743952721929,0.181762,82526.0,82520.0,0.12290297]
[1743952722132,0.38215325,82531.0,82529.0,0.169635]
[1743952722501,0.38215325,82531.0,82530.0,0.12290297]
[1743952723844,0.181739,82536.0,82530.0,0.12290297]
[1743952724005,0.181739,82536.0,82530.0,0.29253697]
[1743952724346,0.38215325,82540.0,82530.0,0.13501897]
[1743952724554,0.38215325,82540.0,82534.0,0.181743]
[1743952724675,0.38215325,82540.0,82534.0,0.44592597]
[1743952727567,0.38215325,82540.0,82534.0,1.49232597]
[1743952727766,0.38215325,82550.0,82534.0,1.49232597]
[1743952727971,0.0003312,82555.0,82534.0,1.53742597]
[1743952728471,0.1699162,82555.0,82534.0,1.53742597]
[1743952728803,0.0003312,82555.0,82534.0,1.53742597]
[1743952729219,0.1699162,82555.0,82534.0,1.53742597]
[1743952729349,0.169588,82553.0,82534.0,1.53742597]
[1743952729552,0.181718,82545.0,82534.0,1.49228597]
[1743952729897,0.227914,82548.0,82534.0,1.49228597]
[1743952730097,0.2158,82548.0,82534.0,1.49228597]
[1743952731046,0.0462,82548.0,82534.0,1.49228597]
[1743952731641,0.0462,82548.0,82534.0,1.35104597]
[1743952731817,0.0495,82545.0,82534.0,1.49228597]
[1743952732015,0.219106,82545.0,82534.0,1.35104597]
[1743952732197,0.219106,82545.0,82534.0,1.49228597]
[1743952732198,0.0495,82545.0,82534.0,1.49228597]
[1743952732394,0.169611,82542.0,82534.0,1.35104597]
[1743952732617,0.219106,82545.0,82534.0,1.49228597]
[1743952732862,0.169609,82543.0,82534.0,1.35104597]
[1743952733055,0.181727,82542.0,82534.0,1.48016997]
[1743952733887,0.181727,82542.0,82534.0,1.49228597]
[1743952735735,0.169614,82541.0,82534.0,1.48016997]
[1743952735936,0.181722,82544.0,82534.0,1.49228597]
[1743952736608,0.16961,82543.0,82534.0,1.49228597]
[1743952737492,0.169613,82541.0,82534.0,1.49228597]
[1743952737902,0.012115,82542.0,82534.0,1.49228597]
[1743952738312,0.181724,82543.0,82534.0,1.49228597]
[1743952739616,0.169616,82540.0,82534.0,1.49228597]
[1743952740261,0.012115,82536.0,82534.0,1.31054297]
[1743952740683,0.16962,82538.0,82534.0,1.31054297]
[1743952740891,0.00714829,82535.0,82534.0,1.31054297]
[1743952741166,0.0003314,82535.0,82534.0,1.31054297]
[1743952741614,0.0003314,82535.0,82534.0,1.32265897]
[1743952742280,0.0003314,82535.0,82534.0,1.32261897]
[1743952744098,0.00714829,82535.0,82534.0,1.32261897]
[1743952744298,0.0003314,82535.0,82534.0,1.32261897]
[1743952744497,0.03714829,82535.0,82534.0,1.32261897]
[1743952744667,0.0003314,82535.0,82534.0,1.32261897]
[1743952744865,0.00714829,82535.0,82534.0,1.32261897]
[1743952745064,0.0003314,82535.0,82534.0,1.32261897]
[1743952745239,0.00714829,82535.0,82534.0,1.32261897]
[1743952745445,0.0003314,82535.0,82534.0,1.32261897]
[1743952747381,0.0003314,82535.0,82534.0,1.36881897]
[1743952748024,0.0003314,82535.0,82534.0,1.32261897]
[1743952748234,0.0003314,82535.0,82534.0,1.31046297]
[1743952748437,0.0124474,82535.0,82534.0,1.0464]
[1743952748635,0.0124474,82535.0,82534.0,1.18756]
[1743952748636,0.45059864,82535.0,82534.0,1.18756]
[1743952748837,0.44380065,82535.0,82534.0,1.18756]
[1743952749646,0.44380065,82535.0,82534.0,1.0464]
[1743952749809,0.44380065,82535.0,82534.0,1.18756]
[1743952751159,0.78380065,82535.0,82534.0,1.18756]
[1743952751360,0.181773,82520.0,82511.0,0.02030209]
[1743952751556,0.181773,82520.0,82519.0,1.16934867]
[1743952751855,0.228673,82520.0,82519.0,1.1876057]
[1743952752662,0.228673,82520.0,82519.0,1.0464457]
[1743952752891,0.228673,82520.0,82519.0,1.1876057]
[1743952756744,0.181773,82520.0,82519.0,1.1876057]
[1743952756948,0.55180625,82522.0,82519.0,1.31050867]
[1743952757151,0.38215325,82522.0,82520.0,0.12290297]
[1743952757572,0.55180625,82522.0,82520.0,0.12290297]
[1743952757770,0.012118,82521.0,82520.0,0.12290297]
[1743952758222,0.042118,82521.0,82520.0,0.12290297]
[1743952758425,0.012118,82521.0,82520.0,0.12290297]
[1743952760855,0.38215325,82522.0,82520.0,0.12290297]
[1743952761434,0.56392325,82522.0,82520.0,0.12290297]
[1743952762854,0.012118,82521.0,82520.0,0.12290297]
[1743952764365,0.56392325,82522.0,82520.0,0.12290297]
[1743952764511,0.012118,82521.0,82520.0,0.12290297]
[1743952766271,0.012118,82521.0,82520.0,0.26406297]
[1743952766677,0.56392325,82522.0,82520.0,0.26406297]
[1743952766986,0.012118,82521.0,82520.0,0.26406297]
[1743952767586,0.55180625,82522.0,82520.0,0.26406297]
[1743952767769,0.38215325,82522.0,82520.0,0.26406297]
[1743952768692,0.38215325,82538.0,82528.0,0.012117]
[1743952768839,0.16963,82533.0,82529.0,0.12290297]
[1743952769242,0.169624,82536.0,82529.0,0.30465397]
[1743952769439,0.169627,82534.0,82529.0,0.29253797]
[1743952769642,0.1699574,82535.0,82530.0,0.169633]
[1743952769879,0.169628,82534.0,82531.0,0.12290297]
[1743952770082,0.16963,82533.0,82531.0,0.12290297]
[1743952770285,0.169628,82534.0,82531.0,0.12290297]
[1743952770969,0.181744,82534.0,82531.0,0.12290297]
[1743952771716,0.16963,82533.0,82531.0,0.12290297]
[1743952771914,0.181746,82533.0,82531.0,0.12290297]
[1743952772242,0.181746,82533.0,82532.0,1.04648]
[1743952772447,0.181746,82533.0,82532.0,1.16938297]
[1743952780560,0.181746,82533.0,82532.0,1.31046297]
[1743952781370,0.1820734,82535.0,82532.0,1.31046297]
[1743952781572,0.169629,82534.0,82533.0,0.12290297]
[1743952781771,0.012116,82534.0,82533.0,0.12290297]
[1743952784145,0.012116,82534.0,82533.0,0.26398297]
[1743952784375,0.181745,82533.0,82532.0,1.04648]
[1743952784568,0.274745,82533.0,82532.0,1.04648]
[1743952786254,0.65689825,82533.0,82532.0,1.04648]
[1743952787680,0.181773,82520.0,82510.0,0.02]
[1743952787860,0.181773,82520.0,82519.0,0.1412457]
[1743952789256,0.181773,82520.0,82519.0,0.0001657]
[1743952789486,0.181773,82520.0,82519.0,0.1412457]
[1743952790822,0.18158971,82520.0,82519.0,0.1412457]
[1743952791310,0.18158971,82520.0,82519.0,0.0001657]
[1743952791526,0.18158971,82520.0,82519.0,0.1412057]
[1743952792808,0.18158971,82520.0,82519.0,0.0001657]
[1743952793040,0.18158971,82520.0,82519.0,0.1412057]
[1743952794176,0.29158971,82520.0,82519.0,0.1412057]
[1743952794403,0.18158971,82520.0,82519.0,0.1412057]
[1743952795969,0.18158971,82520.0,82519.0,0.0001657]
[1743952796119,0.18158971,82520.0,82519.0,0.1412057]
[1743952797182,0.181773,82521.0,82519.0,0.1412057]
[1743952797540,0.012118,82520.0,82519.0,0.1412057]
[1743952799649,0.012118,82521.0,82519.0,0.1412057]
[1743952799803,0.34,82531.0,82524.0,0.012117]
[1743952800002,0.18176,82527.0,82525.0,0.12290297]
[1743952800441,0.012117,82526.0,82525.0,0.12290297]
[1743952800793,0.012118,82520.0,82519.0,0.1412057]
[1743952800994,0.181773,82520.0,82519.0,0.0001657]
[1743952801139,0.181773,82520.0,82519.0,0.1412057]
[1743952805971,0.012118,82519.0,82518.0,0.99685063]
[1743952806271,0.012118,82519.0,82518.0,1.13785063]
[1743952807679,0.181773,82520.0,82518.0,1.13785063]
[1743952807977,0.55180625,82522.0,82518.0,1.13785063]
[1743952808206,0.181775,82520.0,82518.0,1.13785063]
[1743952808973,0.012118,82519.0,82518.0,1.13785063]
[1743952809566,0.012118,82519.0,82518.0,0.99685063]
[1743952809764,0.44237125,82519.0,82518.0,0.99685063]
[1743952810167,0.81714561,82519.0,82518.0,0.99685063]
[1743952810367,0.86334561,82519.0,82518.0,0.99685063]
[1743952813116,0.8406686,82519.0,82518.0,0.99685063]
[1743952813684,0.86333522,82519.0,82518.0,0.99685063]
[1743952817335,1.15333522,82519.0,82518.0,0.99685063]
[1743952817537,0.86333522,82519.0,82518.0,0.99685063]
[1743952817935,0.012119,82512.0,82511.0,0.00030209]
[1743952818518,0.03478562,82512.0,82511.0,0.00030209]
[1743952819515,0.54445762,82512.0,82511.0,0.00030209]
[1743952821548,0.92661087,82512.0,82511.0,0.00030209]
[1743952824868,0.90394425,82512.0,82511.0,0.00030209]
[1743952830721,0.92657638,82512.0,82511.0,0.00030209]
[1743952831117,0.90394425,82512.0,82511.0,0.00030209]
[1743952831543,0.91578182,82512.0,82511.0,0.00030209]
[1743952837540,1.13438479,82512.0,82511.0,0.00030209]
[1743952838312,1.15705422,82512.0,82511.0,0.00030209]
[1743952839087,1.13438479,82512.0,82511.0,0.00030209]
[1743952842014,0.01212,82502.0,82501.0,0.004]
[1743952842209,0.39397116,82502.0,82501.0,0.004]
[1743952842414,0.57531629,82502.0,82501.0,0.004]
[1743952844037,0.39350429,82502.0,82501.0,0.004]
[1743952844239,0.40562429,82502.0,82501.0,0.004]
[1743952847258,0.40562429,82502.0,82501.0,0.0041657]
[1743952857038,0.42832431,82502.0,82501.0,0.0041657]
[1743952859400,0.76832431,82502.0,82501.0,0.0041657]
[1743952864216,0.74562429,82502.0,82501.0,0.0041657]
[1743952868190,0.86852726,82502.0,82501.0,7e-07]
[1743952868395,0.521828,82495.0,82494.0,0.0001658]
[1743952868803,0.5332646,82495.0,82494.0,0.0001658]
[1743952871550,0.7832646,82495.0,82494.0,0.0001658]
[1743952871763,0.5332646,82495.0,82494.0,0.0001658]
[1743952872177,0.55592467,82495.0,82494.0,0.0001658]
[1743952874335,0.93777513,82495.0,82494.0,0.0001658]
[1743952888135,0.012124,82476.0,82475.0,1.04696]
[1743952888363,0.90371966,82476.0,82475.0,1.04696]
[1743952888538,0.91503465,82476.0,82475.0,1.04696]
[1743952888735,0.93769472,82476.0,82475.0,1.04696]
[1743952889433,0.93779942,82476.0,82475.0,1.04696]
[1743952891191,0.93779942,82476.0,82466.0,0.1408]
[1743952891192,0.181879,82472.0,82466.0,0.1408]
[1743952891397,0.56372866,82472.0,82462.0,0.1408]
[1743952891603,0.57485796,82472.0,82462.0,0.1408]
[1743952891839,0.59751803,82472.0,82462.0,0.1408]
[1743952895408,0.93751803,82472.0,82461.0,0.1408]
[1743952895804,0.94946942,82472.0,82461.0,0.1408]
[1743952906077,0.94946942,82472.0,82460.0,0.0497655]
[1743952906303,0.94946942,82472.0,82463.0,0.1408]
[1743952906736,0.93751803,82472.0,82463.0,0.1408]
[1743952909609,0.94950763,82472.0,82463.0,0.1408]
[1743952912014,0.94950763,82472.0,82462.0,0.14076]
[1743952913559,0.94950763,82472.0,82460.0,0.0497655]
[1743952913759,0.94950763,82472.0,82462.0,0.14076]
[1743952916462,0.93751803,82472.0,82462.0,0.14076]
[1743952916696,0.41563903,82472.0,82471.0,0.0535658]
[1743952916882,0.42776403,82472.0,82471.0,0.0535658]
[1743952918332,0.40510396,82472.0,82471.0,0.0535658]
[1743952919193,0.39297896,82472.0,82471.0,0.18859377]
[1743952919427,0.39297896,82472.0,82471.0,0.23829377]
[1743952920254,0.38184966,82472.0,82471.0,0.23829377]
[1743952920696,0.39303085,82472.0,82471.0,0.23829377]
[1743952921537,0.39303085,82472.0,82471.0,0.37901377]
[1743952922977,0.39303085,82472.0,82471.0,0.22616877]
[1743952923176,0.40515585,82472.0,82471.0,0.26778877]
[1743952923967,0.40515585,82472.0,82471.0,0.1448858]
[1743952926346,0.40515585,82472.0,82471.0,0.0041658]
[1743952926725,0.74515585,82472.0,82471.0,0.0041658]
[1743952928392,0.74515585,82472.0,82471.0,0.0042058]
[1743952928754,0.83845585,82472.0,82471.0,0.0042058]
[1743952934079,0.96135882,82472.0,82471.0,8e-07]
[1743952934360,0.98089967,82472.0,82471.0,8e-07]
[1743952935747,0.97589967,82472.0,82471.0,8e-07]
[1743952936201,0.96135882,82472.0,82471.0,8e-07]
[1743952938212,0.97589967,82472.0,82471.0,8e-07]
[1743952938597,0.98089967,82472.0,82471.0,8e-07]
[1743952938856,0.98089967,82472.0,82460.0,0.0001655]
[1743952938857,0.521903,82461.0,82460.0,0.0001655]
[1743952938978,0.569103,82461.0,82460.0,0.0001655]
[1743952939179,0.57994385,82461.0,82460.0,0.0001655]
[1743952939399,0.53274385,82461.0,82460.0,2.164e-05]
[1743952944342,0.19274385,82461.0,82460.0,2.164e-05]
[1743952944544,0.01084085,82461.0,82460.0,0.12292461]
[1743952944739,0.01084085,82461.0,82460.0,0.16832461]
[1743952945101,0.02296685,82461.0,82460.0,0.16832461]
[1743952945895,0.02296685,82461.0,82460.0,0.16836461]
[1743952946103,0.02296685,82461.0,82460.0,0.30904461]
[1743952947695,0.02296685,82461.0,82460.0,0.18614164]
[1743952948329,0.02296685,82461.0,82460.0,0.14074164]
[1743952949170,0.02296685,82461.0,82460.0,6.164e-05]
[1743952950587,0.40481571,82461.0,82460.0,6.164e-05]
[1743952959644,0.74481571,82461.0,82460.0,6.164e-05]
[1743952964773,0.74481571,82461.0,82460.0,0.14066164]
[1743952964933,0.74514731,82461.0,82460.0,0.14066164]
[1743952969903,1.01514731,82461.0,82460.0,0.14066164]
[1743952970117,0.74514731,82461.0,82460.0,0.14066164]
[1743952971419,0.74514731,82461.0,82460.0,6.164e-05]
[1743952971622,0.74514731,82461.0,82460.0,0.14066164]
[1743952972165,0.40514731,82461.0,82460.0,0.31306461]
[1743952972367,0.01117245,82461.0,82460.0,0.37259161]
[1743952972977,0.0003316,82461.0,82460.0,0.37259161]
[1743952973196,0.01197523,82461.0,82460.0,0.37259161]
[1743952973377,0.0003316,82461.0,82460.0,0.37259161]
[1743952973601,0.01198737,82461.0,82460.0,0.37259161]
[1743952973760,0.0003316,82461.0,82460.0,0.37259161]
[1743952973934,0.01198737,82461.0,82460.0,0.37259161]
[1743952976759,0.01198737,82461.0,82460.0,0.36042461]
[1743952976981,0.01134464,82461.0,82460.0,0.36042461]
[1743952977470,0.38184886,82467.0,82466.0,0.012126]
[1743952977583,0.38184886,82467.0,82466.0,0.18102897]
[1743952977784,0.0003316,82472.0,82471.0,0.058125]
[1743952978028,0.0003316,82472.0,82471.0,0.18102797]
[1743952979623,0.0003316,82472.0,82471.0,0.35078397]
[1743952982032,0.0003316,82472.0,82471.0,0.35965823]
[1743952982648,0.0003316,82472.0,82471.0,0.50017823]
[1743952985149,0.0003316,82472.0,82471.0,0.35965823]
[1743952985351,0.0124566,82472.0,82471.0,0.27229723]
[1743952985911,0.0124566,82472.0,82464.0,0.16977]
[1743952985912,0.012126,82462.0,82454.0,0.21579]
[1743952986111,0.181903,82462.0,82461.0,0.26342297]
[1743952986628,0.19366976,82462.0,82461.0,0.26342297]
[1743952987070,0.19366976,82462.0,82461.0,0.12290297]
[1743952987270,0.19366976,82462.0,82461.0,0.26342297]
[1743952988380,0.012126,82461.0,82445.0,0.046]
[1743952988518,0.39397486,82461.0,82445.0,0.012129]
[1743952988720,0.40573724,82461.0,82460.0,0.14058164]
[1743952993402,0.39361124,82461.0,82460.0,0.27561161]
[1743952993608,0.39361124,82461.0,82460.0,0.26348461]
[1743952993785,0.40573724,82461.0,82460.0,0.26348461]
[1743952993984,0.40573724,82461.0,82460.0,0.14058164]
[1743952995646,0.74573724,82461.0,82460.0,6.164e-05]
[1743952995849,0.79563724,82461.0,82460.0,6.164e-05]
[1743952995990,0.81827417,82461.0,82460.0,6.164e-05]
[1743952997310,0.86637417,82461.0,82460.0,6.164e-05]
[1743952998027,0.86637417,82461.0,82460.0,4e-05]
[1743952998228,0.060229,82445.0,82444.0,1.04728]
[1743952998440,0.95182622,82445.0,82444.0,1.04728]
[1743952998655,0.98589499,82445.0,82444.0,1.04728]
[1743952999575,0.98594042,82445.0,82444.0,1.04728]
[1743953001261,0.93784042,82445.0,82444.0,1.04728]
[1743953002065,0.91520349,82445.0,82444.0,1.04728]
[1743953002269,0.73326449,82445.0,82444.0,1.04728]
[1743953002889,0.39326449,82445.0,82444.0,1.18231197]
[1743953003181,0.39326449,82445.0,82444.0,1.18247777]
[1743953006242,0.39326449,82445.0,82444.0,1.17034877]
[1743953007062,0.40539349,82445.0,82444.0,1.31086877]
[1743953007280,0.39326449,82445.0,82444.0,1.31086877]
[1743953007487,0.39326449,82445.0,82444.0,1.48068077]
[1743953007685,0.39326449,82445.0,82444.0,1.49280977]
[1743953007885,0.39326449,82445.0,82444.0,1.31086877]
[1743953008798,0.40539349,82445.0,82444.0,1.31086877]
[1743953009854,0.39326449,82445.0,82444.0,1.31086877]
[1743953011364,0.39326449,82445.0,82444.0,1.48068077]
[1743953011871,0.39326449,82445.0,82444.0,1.17034877]
[1743953012075,0.40539349,82445.0,82444.0,1.31082877]
[1743953012631,0.40539349,82445.0,82444.0,1.17034877]
[1743953012821,0.40539349,82445.0,82444.0,1.31082877]
[1743953015159,0.40539349,82445.0,82444.0,1.0474458]
[1743953015371,0.40539349,82445.0,82444.0,1.1879258]
[1743953015830,0.4280422,82445.0,82444.0,1.1879258]
[1743953017898,0.7680422,82445.0,82444.0,1.0474458]
[1743953019810,0.8156422,82445.0,82444.0,1.0474458]
[1743953022596,0.7680422,82445.0,82444.0,1.0474458]
[1743953023026,0.76695432,82445.0,82444.0,1.0474458]
[1743953023831,0.76815501,82445.0,82444.0,1.0474458]
[1743953034292,0.76815501,82445.0,82444.0,0.0001658]
[1743953038589,0.012129,82442.0,82441.0,0.004]
[1743953038947,0.02356718,82442.0,82441.0,0.004]
[1743953039148,0.04621589,82442.0,82441.0,0.004]
[1743953041658,0.03408689,82442.0,82441.0,0.004]
[1743953041895,0.04621589,82442.0,82441.0,0.004]
[1743953043398,0.04621589,82442.0,82441.0,0.0041659]
[1743953043919,0.02356718,82442.0,82441.0,0.0041659]
[1743953044320,0.74410072,82442.0,82441.0,0.0041659]
[1743953062120,0.01213,82437.0,82436.0,0.0001656]
[1743953062500,0.02168027,82437.0,82436.0,0.0001656]
[1743953065519,0.00955027,82437.0,82436.0,0.35392657]
[1743953065857,0.00955027,82437.0,82436.0,0.34179657]
[1743953066349,0.00955027,82437.0,82436.0,0.17196857]
[1743953066482,0.00955027,82437.0,82436.0,0.34179657]
[1743953066840,0.00955027,82437.0,82436.0,0.35392657]
[1743953067191,0.37636764,82439.0,82438.0,0.227354]
[1743953067392,0.37636764,82439.0,82438.0,0.35025697]
[1743953067820,0.37636764,82439.0,82438.0,0.35918851]
[1743953068021,0.37636764,82439.0,82438.0,0.39701331]
[1743953070176,0.37636764,82439.0,82438.0,0.39717921]
[1743953070328,0.37636764,82439.0,82438.0,0.49975441]
[1743953070963,0.0003318,82444.0,82443.0,0.181943]
[1743953071163,0.0003318,82444.0,82443.0,0.35627157]
[1743953071380,0.00996617,82444.0,82443.0,0.35384597]
[1743953071796,0.00996617,82444.0,82443.0,0.40374597]
[1743953073370,0.00996617,82444.0,82443.0,0.54414597]
[1743953073689,0.00996617,82444.0,82443.0,0.40374597]
[1743953073895,0.00996617,82444.0,82443.0,0.54414597]